fUST/lending_fUST_20241204
["ID","MTS","AMOUNT","RATE_DAILY","PERIOD"]
[344116294,1733278245563,-1679.13,0.00030136,7]
[344116295,1733278245576,-1679.13,0.00030136,7]
[344116296,1733278245587,-1679.13,0.00030136,7]
[344116297,1733278245597,-1679.13,0.00030136,7]
[344116298,1733278245606,-1679.13,0.00030136,7]
[344116299,1733278245616,-1679.13,0.00030136,7]
[344116300,1733278245626,-1679.13,0.00030136,7]
[344116301,1733278245635,-1679.13,0.00030136,7]
[344116302,1733278245645,-1679.13,0.00030136,7]
[344116303,1733278245654,-501.91166124,0.00030136,7]
[344116304,1733278245663,-500.0,0.00030136,7]
[344116305,1733278245673,-1679.13,0.00030136,7]
[344116306,1733278245682,-500.0,0.00030136,7]
[344116307,1733278245693,-1679.13,0.00030136,7]
[344116308,1733278245702,-500.0,0.00030136,7]
[344116309,1733278245711,-1679.13,0.00030136,7]
[344116310,1733278245721,-500.0,0.00030136,7]
[344116311,1733278245730,-1679.35327218,0.00030136,7]
[344116312,1733278245739,-500.0,0.00030136,7]
[344116313,1733278245751,-525.00138146,0.00030136,7]
[344116317,1733278245761,-500.0,0.00030136,7]
[344116318,1733278245771,-500.0,0.00030136,7]
[344116321,1733278245780,-508.46433871,0.00030136,7]
[344116324,1733278245790,-502.72750242,0.00030136,7]
[344116327,1733278245799,-500.0,0.00030136,7]
[344116331,1733278245808,-500.0,0.00030136,7]
[344116333,1733278245818,-501.99988058,0.00030136,7]
[344116337,1733278245828,-500.0,0.00030136,7]
[344116340,1733278245837,-526.46312416,0.00030136,7]
[344116343,1733278245846,-507.49741092,0.00030136,7]
[344116346,1733278245856,-500.0,0.00030136,7]
[344116349,1733278245865,-506.89418979,0.00030136,7]
[344116352,1733278245875,-500.0,0.00030136,7]
[344116355,1733278245884,-500.0,0.00030136,7]
[344116357,1733278245893,-500.0,0.00030136,7]
[344116359,1733278245902,-500.0,0.00030136,7]
[344116361,1733278245912,-505.78380998,0.00030136,7]
[344116363,1733278245921,-500.0,0.00030136,7]
[344116365,1733278245930,-525.23008847,0.00030136,7]
[344116367,1733278245939,-501.58372116,0.00030136,7]
[344116369,1733278245951,-500.0,0.00030136,7]
[344116371,1733278245960,-506.52773898,0.00030136,7]
[344116372,1733278245970,-500.0,0.00030136,7]
[344116375,1733278245980,-500.0,0.00030136,7]
[344116377,1733278245989,-500.0,0.00030136,7]
[344116379,1733278245998,-500.0,0.00030136,7]
[344116380,1733278246008,-516.46098534,0.00030136,7]
[344116382,1733278246017,-2188.32,0.00030136,7]
[344116385,1733278246027,-2188.32,0.00030136,7]
[344116386,1733278246036,-2188.32,0.00030136,7]
[344116389,1733278246045,-2188.32,0.00030136,7]
[344116391,1733278246055,-2188.32,0.00030136,7]
[344116393,1733278246064,-2188.32,0.00030136,7]
[344116394,1733278246073,-2188.32,0.00030136,7]
[344116397,1733278246083,-501.73230712,0.00030136,7]
[344116399,1733278246092,-2188.32,0.00030136,7]
[344116401,1733278246101,-505.65242911,0.00030136,2]
[344116402,1733278246111,-2188.32,0.00030136,7]
[344116404,1733278246120,-2188.32,0.00030136,7]
[344116406,1733278246129,-500.0,0.00030136,7]
[344116408,1733278246139,-2188.32,0.00030136,7]
[344116410,1733278246147,-513.65491692,0.00030136,7]
[344116412,1733278246157,-2188.32,0.00030136,7]
[344116414,1733278246166,-2188.32,0.00030136,7]
[344116416,1733278246175,-2188.32,0.00030136,7]
[344116418,1733278246184,-503.08382451,0.00030136,7]
[344116421,1733278246196,-2188.32,0.00030136,7]
[344116423,1733278246205,-2188.32,0.00030136,7]
[344116425,1733278246214,-500.0,0.00030136,7]
[344116427,1733278246223,-2188.32,0.00030136,7]
[344116429,1733278246233,-2188.32,0.00030136,7]
[344116432,1733278246243,-500.0,0.00030136,7]
[344116434,1733278246252,-511.4791697,0.00030136,7]
[344116436,1733278246261,-2188.32,0.00030136,7]
[344116438,1733278246270,-2188.32,0.00030136,7]
[344116440,1733278246279,-508.38802553,0.00030136,7]
[344116442,1733278246288,-2188.32,0.00030136,7]
[344116444,1733278246298,-2188.32,0.00030136,7]
[344116446,1733278246307,-2188.32,0.00030136,7]
[344116448,1733278246316,-2188.53111976,0.00030136,7]
[344116450,1733278246325,-500.0,0.00030136,7]
[344116452,1733278246335,-505.56622693,0.00030136,7]
[344116467,1733278246465,-500.0,0.00030136,7]
[344116469,1733278246477,-507.13192059,0.00030136,7]
[344116471,1733278246490,-500.0,0.00030136,7]
[344116473,1733278246501,-500.0,0.00030136,7]
[344116475,1733278246511,-500.0,0.00030136,7]
[344116477,1733278246520,-500.0,0.00030136,7]
[344116479,1733278246531,-505.32572733,0.00030136,7]
[344116481,1733278246540,-340.77903489,0.00030136,7]
[344116483,1733278246550,-503.00066427,0.00030136,7]
[344116485,1733278246560,-502.96564311,0.00030136,7]
[344116487,1733278246570,-502.82119646,0.00030136,7]
[344116489,1733278246579,-553.62037191,0.00030136,7]
[344116491,1733278246588,-194.19253476,0.00030136,7]
[344116493,1733278246597,-502.76962581,0.00030136,7]
[344116495,1733278246607,-501.25608979,0.00030136,7]
[344116497,1733278246616,-500.7206841,0.00030136,7]
[344116499,1733278246626,-500.0,0.00030136,7]
[344116501,1733278246635,-500.0,0.00030136,7]
[344116503,1733278246646,-500.0,0.00030136,7]
[344116505,1733278246655,-506.17065024,0.00030136,7]
[344116507,1733278246664,-872.9,0.00030136,7]
[344116509,1733278246673,-500.0,0.00030136,7]
[344116511,1733278246683,-502.23219714,0.00030136,7]
[344116513,1733278246694,-872.9,0.00030136,7]
[344116515,1733278246703,-500.0,0.00030136,7]
[344116517,1733278246712,-500.0,0.00030136,7]
[344116519,1733278246721,-872.9,0.00030136,7]
[344116521,1733278246731,-554.74433752,0.00030136,7]
[344116523,1733278246740,-872.9,0.00030136,7]
[344116525,1733278246750,-872.9,0.00030136,7]
[344116527,1733278246759,-872.9,0.00030136,7]
[344116529,1733278246769,-872.9,0.00030136,7]
[344116531,1733278246778,-561.83171944,0.00030136,7]
[344116533,1733278246788,-872.9,0.00030136,7]
[344116535,1733278246797,-872.9,0.00030136,7]
[344116537,1733278246807,-872.9,0.00030136,7]
[344116539,1733278246816,-872.9,0.00030136,7]
[344116541,1733278246825,-872.9,0.00030136,7]
[344116543,1733278246835,-500.0,0.00030136,7]
[344116545,1733278246844,-872.9,0.00030136,7]
[344116547,1733278246853,-500.0,0.00030136,7]
[344116549,1733278246862,-502.77895353,0.00030136,7]
[344116551,1733278246872,-500.0,0.00030136,7]
[344116553,1733278246881,-872.9,0.00030136,7]
[344116555,1733278246890,-872.9,0.00030136,7]
[344116557,1733278246899,-500.0,0.00030136,7]
[344116559,1733278246909,-872.9,0.00030136,7]
[344116561,1733278246919,-500.0,0.00030136,7]
[344116563,1733278246929,-872.9,0.00030136,7]
[344116565,1733278246939,-500.0,0.00030136,7]
[344116567,1733278246951,-872.9,0.00030136,7]
[344116569,1733278246960,-500.0,0.00030136,7]
[344116571,1733278246970,-872.9,0.00030136,7]
[344116573,1733278246980,-502.13830139,0.00030136,7]
[344116575,1733278246990,-241.41479486,0.00030136,7]
[344116577,1733278247000,-872.9,0.00030136,7]
[344116579,1733278247011,-872.9,0.00030136,7]
[344116581,1733278247021,-872.9,0.00030136,7]
[344116583,1733278247030,-872.9,0.00030136,7]
[344116585,1733278247040,-501.5426738,0.00030136,7]
[344116587,1733278247050,-872.94875977,0.00030136,7]
[344116589,1733278247060,-524.23315313,0.00030136,7]
[344116591,1733278247069,-500.0,0.00030136,7]
[344116593,1733278247079,-502.77072055,0.00030136,7]
[344116596,1733278247088,-501.44237449,0.00030136,7]
[344116597,1733278247098,-500.0,0.00030136,7]
[344116600,1733278247107,-500.0,0.00030136,7]
[344116602,1733278247117,-500.0,0.00030136,7]
[344116604,1733278247128,-500.0,0.00030136,7]
[344116606,1733278247137,-500.0,0.00030136,7]
[344116608,1733278247146,-500.0,0.00030136,7]
[344116610,1733278247156,-500.0,0.00030136,7]
[344116612,1733278247165,-502.69030261,0.00030136,7]
[344116614,1733278247175,-510.97086553,0.00030136,7]
[344116616,1733278247184,-501.64444578,0.00030136,7]
[344116618,1733278247195,-500.0,0.00030136,7]
[344116620,1733278247206,-500.0,0.00030136,7]
[344116622,1733278247215,-500.0,0.00030136,7]
[344116624,1733278247224,-500.0,0.00030136,7]
[344116626,1733278247234,-500.0,0.00030136,7]
[344116628,1733278247245,-500.0,0.00030136,7]
[344116630,1733278247255,-500.0,0.00030136,7]
[344116632,1733278247269,-212.4679861,0.00030136,7]
[344116634,1733278247279,-500.0,0.00030136,7]
[344116636,1733278247289,-511.54059851,0.00030136,7]
[344116638,1733278247300,-500.0,0.00030136,7]
[344116640,1733278247310,-500.0,0.00030136,7]
[344116641,1733278247320,-500.0,0.00030136,7]
[344116642,1733278247330,-500.0,0.00030136,7]
[344116644,1733278247339,-500.0,0.00030136,7]
[344116646,1733278247349,-500.0,0.00030136,7]
[344116648,1733278247359,-500.0,0.00030136,7]
[344116650,1733278247370,-500.0,0.00030136,7]
[344116652,1733278247380,-504.21054185,0.00030136,7]
[344116654,1733278247391,-500.0,0.00030136,7]
[344116656,1733278247401,-500.0,0.00030136,7]
[344116657,1733278247411,-500.0,0.00030136,7]
[344116660,1733278247421,-500.0,0.00030136,7]
[344116661,1733278247430,-500.0,0.00030136,7]
[344116663,1733278247440,-500.0,0.00030136,7]
[344116665,1733278247451,-500.0,0.00030136,7]
[344116667,1733278247461,-522.98106577,0.00030136,7]
[344116668,1733278247471,-459.58152251,0.00030136,7]
[344116669,1733278247481,-500.0,0.00030136,7]
[344116670,1733278247492,-500.0,0.00030136,7]
[344116671,1733278247504,-500.0,0.00030136,7]
[344116672,1733278247515,-506.74478022,0.00030136,7]
[344116673,1733278247524,-500.0,0.00030136,7]
[344116674,1733278247534,-500.0,0.00030136,7]
[344116675,1733278247544,-500.0,0.00030136,7]
[344116676,1733278247554,-525.75953896,0.00030136,7]
[344116677,1733278247564,-532.43127218,0.00030136,7]
[344116678,1733278247575,-546.44937471,0.00030136,7]
[344116679,1733278247585,-504.96661204,0.00030136,7]
[344116680,1733278247595,-501.47182588,0.00030136,7]
[344116681,1733278247604,-500.0,0.00030136,7]
[344116682,1733278247614,-500.0,0.00030136,7]
[344116683,1733278247624,-500.0,0.00030136,7]
[344116684,1733278247634,-500.0,0.00030136,7]
[344116685,1733278247643,-500.0,0.00030136,7]
[344116686,1733278247653,-556.65918759,0.00030136,7]
[344116687,1733278247663,-486.92045652,0.00030136,7]
[344116688,1733278247672,-500.0,0.00030136,7]
[344116689,1733278247682,-588.77010757,0.00030136,7]
[344116690,1733278247691,-500.0,0.00030136,7]
[344116691,1733278247702,-500.0,0.00030136,7]
[344116692,1733278247711,-512.79536076,0.00030136,7]
[344116693,1733278247721,-500.99169595,0.00030136,7]
[344116694,1733278247731,-512.02421544,0.00030136,7]
[344116695,1733278247740,-501.34136549,0.00030136,7]
[344116696,1733278247753,-500.0,0.00030136,7]
[344116697,1733278247767,-505.01663218,0.00030136,7]
[344116698,1733278247780,-500.0,0.00030136,7]
[344116699,1733278247793,-500.0,0.00030136,7]
[344116700,1733278247806,-500.0,0.00030136,7]
[344116701,1733278247816,-500.0,0.00030136,7]
[344116702,1733278247830,-500.0,0.00030136,7]
[344116703,1733278247842,-547.51556065,0.00030136,7]
[344116704,1733278247854,-500.0,0.00030136,7]
[344116705,1733278247867,-500.0,0.00030136,7]
[344116706,1733278247881,-502.29718799,0.00030136,7]
[344116707,1733278247893,-500.0,0.00030136,7]
[344116708,1733278247905,-500.0,0.00030136,7]
[344116709,1733278247926,-500.0,0.00030136,7]
[344116710,1733278247941,-500.0,0.00030136,7]
[344116711,1733278247955,-508.80427741,0.00030136,7]
[344116712,1733278247967,-236.41727224,0.00030136,7]
[344116713,1733278247979,-500.0,0.00030136,7]
[344116714,1733278247991,-500.0,0.00030136,7]
[344116715,1733278248004,-502.11056213,0.00030136,7]
[344116716,1733278248017,-500.0,0.00030136,7]
[344116717,1733278248030,-511.46240846,0.00030136,7]
[344116718,1733278248042,-500.0,0.00030136,7]
[344116719,1733278248052,-504.16757865,0.00030136,7]
[344116720,1733278248063,-507.07797579,0.00030136,7]
[344116721,1733278248077,-506.0,0.00030136,7]
[344116722,1733278248089,-500.0,0.00030136,7]
[344116723,1733278248102,-504.59854104,0.00030136,7]
[344116724,1733278248115,-500.0,0.00030136,7]
[344116725,1733278248132,-502.61721623,0.00030136,7]
[344116726,1733278248145,-506.82215019,0.00030136,7]
[344116727,1733278248158,-502.22702147,0.00030136,7]
[344116728,1733278248173,-500.0,0.00030136,7]
[344116729,1733278248187,-500.0,0.00030136,7]
[344116730,1733278248204,-569.57065066,0.00030136,7]
[344116731,1733278248217,-500.0,0.00030136,7]
[344116732,1733278248228,-513.04023857,0.00030136,7]
[344116733,1733278248239,-523.56344718,0.00030136,7]
[344116734,1733278248251,-510.85688149,0.00030136,7]
[344116735,1733278248263,-500.0,0.00030136,7]
[344116736,1733278248277,-507.01663271,0.00030136,7]
[344116737,1733278248291,-500.0,0.00030136,7]
[344116738,1733278248304,-500.0,0.00030136,7]
[344116739,1733278248314,-503.09311346,0.00030136,7]
[344116740,1733278248326,-502.88520996,0.00030136,7]
[344116741,1733278248338,-529.18214911,0.00030136,7]
[344116742,1733278248352,-502.45023449,0.00030136,7]
[344116743,1733278248364,-500.0,0.00030136,7]
[344116744,1733278248376,-500.0,0.00030136,7]
[344116745,1733278248390,-214.26233196,0.00030136,7]
[344116746,1733278248404,-378.1530291,0.00030136,7]
[344116747,1733278248416,-500.0,0.00030136,7]
[344116748,1733278248427,-468.27148981,0.00030136,7]
[344116749,1733278248439,-500.0,0.00030136,7]
[344116750,1733278248456,-503.79163313,0.00030136,7]
[344116751,1733278248469,-500.0,0.00030136,7]
[344116752,1733278248484,-355.58213851,0.00030136,7]
[344116753,1733278248497,-598.79218329,0.00030136,7]
[344116754,1733278248509,-500.0,0.00030136,7]
[344116755,1733278248522,-503.72074417,0.00030136,7]
[344116756,1733278248533,-500.0,0.00030136,7]
[344116757,1733278248545,-500.0,0.00030136,7]
[344116758,1733278248556,-514.26115386,0.00030136,7]
[344116759,1733278248567,-500.7170905,0.00030136,7]
[344116760,1733278248580,-500.0,0.00030136,7]
[344116761,1733278248591,-500.0,0.00030136,7]
[344116762,1733278248603,-522.36413902,0.00030136,7]
[344116763,1733278248614,-500.0,0.00030136,7]
[344116764,1733278248626,-505.69442984,0.00030136,7]
[344116765,1733278248638,-500.0,0.00030136,7]
[344116766,1733278248650,-409.00614814,0.00030136,7]
[344116767,1733278248661,-500.0,0.00030136,7]
[344116768,1733278248673,-500.0,0.00030136,7]
[344116769,1733278248684,-500.0,0.00030136,7]
[344116770,1733278248695,-500.0,0.00030136,7]
[344116771,1733278248707,-509.63946918,0.00030136,7]
[344116772,1733278248718,-500.0,0.00030136,7]
[344116773,1733278248729,-343.34727426,0.00030136,7]
[344116774,1733278248741,-500.0,0.00030136,7]
[344116775,1733278248752,-294.45795322,0.00030136,7]
[344116776,1733278248763,-500.0,0.00030136,7]
[344116777,1733278248776,-500.0,0.00030136,7]
[344116778,1733278248787,-500.0,0.00030136,7]
[344116779,1733278248799,-500.0,0.00030136,7]
[344116780,1733278248810,-500.0,0.00030136,7]
[344116781,1733278248821,-500.0,0.00030136,7]
[344116782,1733278248832,-500.0,0.00030136,7]
[344116783,1733278248843,-500.0,0.00030136,7]
[344116784,1733278248856,-526.13046036,0.00030136,7]
[344116785,1733278248867,-500.0,0.00030136,7]
[344116786,1733278248878,-500.0,0.00030136,7]
[344116787,1733278248889,-500.0,0.00030136,7]
[344116788,1733278248900,-553.13309921,0.00030136,7]
[344116789,1733278248912,-500.0,0.00030136,7]
[344116790,1733278248923,-515.20691532,0.00030136,7]
[344116791,1733278248934,-500.0,0.00030136,7]
[344116792,1733278248946,-500.0,0.00030136,7]
[344116793,1733278248957,-500.0,0.00030136,7]
[344116794,1733278248969,-500.0,0.00030136,7]
[344116795,1733278248981,-185.83109084,0.00030136,7]
[344116796,1733278248992,-500.0,0.00030136,7]
[344116797,1733278249004,-500.0,0.00030136,7]
[344116798,1733278249015,-500.0,0.00030136,7]
[344116799,1733278249026,-189.22991679,0.00030136,7]
[344116800,1733278249038,-500.0,0.00030136,7]
[344116801,1733278249049,-557.9968567,0.00030136,7]
[344116802,1733278249061,-500.0,0.00030136,7]
[344116803,1733278249073,-500.0,0.00030136,7]
[344116804,1733278249084,-500.0,0.00030136,7]
[344116805,1733278249095,-504.62702544,0.00030136,7]
[344116806,1733278249106,-500.0,0.00030136,7]
[344116807,1733278249117,-500.0,0.00030136,7]
[344116808,1733278249130,-504.41936883,0.00030136,7]
[344116809,1733278249142,-512.87380225,0.00030136,7]
[344116810,1733278249153,-500.0,0.00030136,7]
[344116811,1733278249164,-500.0,0.00030136,7]
[344116812,1733278249176,-500.0,0.00030136,7]
[344116813,1733278249187,-500.0,0.00030136,7]
[344116814,1733278249199,-500.0,0.00030136,7]
[344116815,1733278249209,-504.85092093,0.00030136,7]
[344116816,1733278249220,-510.6060389,0.00030136,7]
[344116817,1733278249230,-500.0,0.00030136,7]
[344116818,1733278249240,-509.37360003,0.00030136,7]
[344116819,1733278249250,-502.38841369,0.00030136,7]
[344116820,1733278249260,-500.0,0.00030136,7]
[344116821,1733278249270,-500.0,0.00030136,7]
[344116822,1733278249280,-207.89927726,0.00030136,7]
[344116823,1733278249290,-615.35993336,0.00030136,7]
[344116824,1733278249299,-503.49900668,0.00030136,7]
[344116825,1733278249471,-500.0,0.00030136,7]
[344116826,1733278249485,-505.8326993,0.00030136,7]
[344116827,1733278249499,-501.52196096,0.00030136,7]
[344116828,1733278249509,-500.5495867,0.00030136,7]
[344116829,1733278249519,-503.14844579,0.00030136,7]
[344116830,1733278249529,-500.0,0.00030136,7]
[344116831,1733278249538,-503.97452967,0.00030136,7]
[344116832,1733278249548,-500.0,0.00030136,7]
[344116833,1733278249557,-500.0,0.00030136,7]
[344116834,1733278249568,-500.0,0.00030136,7]
[344116835,1733278249577,-506.61709666,0.00030136,7]
[344116837,1733278249587,-648.34647328,0.00030136,7]
[344116839,1733278249596,-500.0,0.00030136,7]
[344116841,1733278249606,-504.99762089,0.00030136,7]
[344116843,1733278249615,-501.71323305,0.00030136,7]
[344116845,1733278249624,-500.0,0.00030136,7]
[344116847,1733278249634,-500.0,0.00030136,7]
[344116848,1733278249644,-501.51311532,0.00030136,7]
[344116849,1733278249653,-500.0,0.00030136,7]
[344116850,1733278249663,-500.0,0.00030136,7]
[344116851,1733278249673,-500.0,0.00030136,7]
[344116852,1733278249682,-500.0,0.00030136,7]
[344116853,1733278249691,-473.17677797,0.00030136,7]
[344116854,1733278249705,-500.0,0.00030136,7]
[344116855,1733278249714,-505.77530096,0.00030136,7]
[344116856,1733278249724,-500.0,0.00030136,7]
[344116857,1733278249733,-501.32853129,0.00030136,7]
[344116858,1733278249743,-187.66142694,0.00030136,7]
[344116859,1733278249753,-592.05722174,0.00030136,7]
[344116860,1733278249762,-500.0,0.00030136,7]
[344116861,1733278249771,-500.0,0.00030136,7]
[344116862,1733278249782,-500.0,0.00030136,7]
[344116863,1733278249791,-500.0,0.00030136,7]
[344116864,1733278249800,-509.65007739,0.00030136,7]
[344116865,1733278249810,-500.0,0.00030136,7]
[344116866,1733278249820,-500.0,0.00030136,7]
[344116867,1733278249829,-500.0,0.00030136,7]
[344116868,1733278249839,-500.0,0.00030136,7]
[344116869,1733278249848,-502.36739771,0.00030136,7]
[344116870,1733278249858,-500.0,0.00030136,7]
[344116871,1733278249868,-507.65978696,0.00030136,7]
[344116872,1733278249878,-509.19682087,0.00030136,7]
[344116873,1733278249888,-500.96778518,0.00030136,7]
[344116874,1733278249898,-500.0,0.00030136,7]
[344116875,1733278249907,-542.83131696,0.00030136,7]
[344116876,1733278249917,-500.0,0.00030136,7]
[344116877,1733278249927,-511.14709885,0.00030136,7]
[344116878,1733278249937,-500.0,0.00030136,7]
[344116879,1733278249949,-500.0,0.00030136,7]
[344116880,1733278249958,-500.0,0.00030136,7]
[344116881,1733278249968,-500.0,0.00030136,7]
[344116882,1733278249981,-500.0,0.00030136,7]
[344116883,1733278249990,-500.0,0.00030136,7]
[344116884,1733278249999,-500.0,0.00030136,7]
[344116885,1733278250009,-500.0,0.00030136,7]
[344116886,1733278250018,-500.0,0.00030136,7]
[344116887,1733278250029,-438.7335713,0.00030136,7]
[344116888,1733278250040,-500.0,0.00030136,7]
[344116889,1733278250050,-232.44486415,0.00030136,7]
[344116890,1733278250060,-500.0,0.00030136,7]
[344116891,1733278250070,-500.0,0.00030136,7]
[344116892,1733278250079,-500.0,0.00030136,7]
[344116893,1733278250089,-500.0,0.00030136,7]
[344116894,1733278250099,-508.41100145,0.00030136,7]
[344116895,1733278250108,-500.0,0.00030136,7]
[344116896,1733278250117,-500.0,0.00030136,7]
[344116897,1733278250127,-500.0,0.00030136,7]
[344116898,1733278250136,-507.25239134,0.00030136,7]
[344116899,1733278250147,-511.68270285,0.00030136,7]
[344116900,1733278250156,-502.12412399,0.00030136,7]
[344116901,1733278250166,-500.0,0.00030136,7]
[344116902,1733278250175,-500.0,0.00030136,7]
[344116903,1733278250184,-500.0,0.00030136,7]
[344116904,1733278250193,-500.0,0.00030136,7]
[344116905,1733278250205,-511.54620502,0.00030136,7]
[344116906,1733278250215,-500.0,0.00030136,7]
[344116907,1733278250224,-508.42472813,0.00030136,7]
[344116908,1733278250233,-500.0,0.00030136,7]
[344116909,1733278250243,-500.0,0.00030136,7]
[344116910,1733278250253,-500.0,0.00030136,7]
[344116911,1733278250262,-500.0,0.00030136,7]
[344116912,1733278250272,-500.0,0.00030136,7]
[344116913,1733278250281,-500.0,0.00030136,7]
[344116914,1733278250291,-500.0,0.00030136,7]
[344116915,1733278250301,-500.0,0.00030136,7]
[344116916,1733278250310,-500.0,0.00030136,7]
[344116917,1733278250320,-541.65997259,0.00030136,7]
[344116918,1733278250329,-501.17233752,0.00030136,7]
[344116919,1733278250339,-500.0,0.00030136,7]
[344116920,1733278250348,-500.0,0.00030136,7]
[344116921,1733278250357,-168.20470741,0.00030136,7]
[344116922,1733278250367,-500.0,0.00030136,7]
[344116923,1733278250376,-500.0,0.00030136,7]
[344116924,1733278250386,-513.46143556,0.00030136,7]
[344116925,1733278250395,-259.52844003,0.00030136,7]
[344116926,1733278250405,-500.0,0.00030136,7]
[344116927,1733278250414,-500.0,0.00030136,7]
[344116928,1733278250424,-500.0,0.00030136,7]
[344116929,1733278250433,-505.18431236,0.00030136,7]
[344116930,1733278250443,-500.0,0.00030136,7]
[344116931,1733278250456,-500.0,0.00030136,7]
[344116932,1733278250465,-500.0,0.00030136,7]
[344116933,1733278250477,-500.0,0.00030136,7]
[344116934,1733278250488,-500.0,0.00030136,7]
[344116935,1733278250497,-500.0,0.00030136,7]
[344116936,1733278250507,-500.0,0.00030136,7]
[344116937,1733278250516,-500.0,0.00030136,7]
[344116938,1733278250526,-500.0,0.00030136,7]
[344116939,1733278250538,-141.90070158,0.00030136,7]
[344116940,1733278250775,-378.37894124,0.00030136,7]
[344116941,1733278250785,-500.0,0.00030136,7]
[344116942,1733278250795,-500.0,0.00030136,7]
[344116943,1733278250804,-500.0,0.00030136,7]
[344116944,1733278250816,-505.16514615,0.00030136,7]
[344116945,1733278250825,-500.0,0.00030136,7]
[344116946,1733278250834,-500.0,0.00030136,7]
[344116947,1733278250844,-522.01418146,0.00030136,7]
[344116948,1733278250853,-500.0,0.00030136,7]
[344116949,1733278250862,-500.0,0.00030136,7]
[344116950,1733278250871,-163.92236753,0.00030136,7]
[344116951,1733278250880,-509.85985453,0.00030136,7]
[344116952,1733278250889,-500.0,0.00030136,7]
[344116953,1733278250898,-500.0,0.00030136,7]
[344116954,1733278250908,-500.0,0.00030136,7]
[344116955,1733278250921,-500.0,0.00030136,7]
[344116956,1733278250933,-502.48462643,0.00030136,7]
[344116957,1733278250943,-500.0,0.00030136,7]
[344116958,1733278250957,-500.0,0.00030136,7]
[344116959,1733278250969,-500.0,0.00030136,7]
[344116960,1733278250979,-500.0,0.00030136,7]
[344116961,1733278250988,-500.0,0.00030136,7]
[344116962,1733278250998,-500.0,0.00030136,7]
[344116963,1733278251007,-517.03419902,0.00030136,7]
[344116964,1733278251017,-500.0,0.00030136,7]
[344116965,1733278251027,-501.75338247,0.00030136,7]
[344116966,1733278251036,-507.15911365,0.00030136,7]
[344116967,1733278251046,-507.65611073,0.00030136,7]
[344116968,1733278251056,-51.26445857,0.00030136,7]
[344116969,1733278254087,1274.60948411,0.00024953,2]
[344116971,1733278286045,-293.7527107,0.00030136,120]
[344116972,1733278286080,-412.4945786,0.00030298,30]
[344116974,1733278339800,151.0,0.0003,120]
[344116978,1733278413363,-458.26,0.000303,31]
[344116979,1733278413395,-458.26,0.000303,31]
[344116980,1733278413424,-458.26,0.000303,31]
[344116981,1733278413455,-458.26,0.000303,31]
[344116982,1733278413486,-458.26,0.000303,31]
[344116983,1733278413516,-458.26,0.000303,31]
[344116984,1733278413549,-458.26,0.000303,31]
[344116985,1733278413579,-458.26,0.000303,31]
[344116986,1733278413615,-458.26,0.000303,31]
[344116987,1733278413645,-458.26,0.000303,31]
[344116988,1733278413676,-458.26,0.000303,31]
[344116989,1733278413713,-458.14,0.000303,31]
[344116990,1733278434153,293.7527107,0.00030054,30]
[344116991,1733278458913,142.7527107,0.0003,120]
[344116992,1733278492310,-8.2472893,0.0003,120]
[344116993,1733278492385,-991.7527107,0.0003041,120]
[344116994,1733278492490,-8.2472893,0.0003041,120]